bitfinex-derivatives/quotes_BNBF0:USTF0_20260114
["timestamp","ask_amount","ask_price","bid_price","bid_amount"]
[1768430558163,0.63681782,946.11,944.22,0.18404129]
[1768430558463,0.63681782,946.1,944.22,0.18404129]
[1768430558663,0.63681782,946.09,944.22,0.18404129]
[1768430558872,0.63681782,946.08,944.22,0.18404129]
[1768430559168,0.63681782,946.07,944.22,0.18404129]
[1768430559372,0.63681782,946.06,944.22,0.18404129]
[1768430559570,0.63681782,946.05,944.22,0.18404129]
[1768430559772,0.63681782,946.04,944.22,0.18404129]
[1768430560074,0.63681782,946.03,944.22,0.18404129]
[1768430560275,0.63681782,946.02,944.22,0.18404129]
[1768430560472,0.63681782,946.01,944.22,0.18404129]
[1768430560672,0.63681782,946.0,944.22,0.18404129]
[1768430560976,0.63681782,945.99,944.22,0.18404129]
[1768430561171,0.6391358,945.98,944.22,0.18404129]
[1768430561372,0.6391358,945.97,944.22,0.18404129]
[1768430561578,0.6391358,945.96,944.22,0.18404129]
[1768430561772,0.6391358,945.95,944.22,0.18404129]
[1768430562076,0.6391358,945.94,944.22,0.18404129]
[1768430562276,0.6391358,945.93,944.22,0.18404129]
[1768430562576,0.6391358,945.92,944.22,0.18404129]
[1768430562772,6.72407945,946.4,944.22,0.18404129]
[1768430562773,0.6391358,945.91,944.22,0.18404129]
[1768430562977,0.6391358,945.9,944.22,0.18404129]
[1768430563277,0.6391358,945.89,944.22,0.18404129]
[1768430563477,0.6391358,945.88,944.22,0.18404129]
[1768430563776,0.6391358,945.87,944.22,0.18404129]
[1768430563977,6.72407945,946.4,944.22,0.18404129]
[1768430564175,0.63947783,946.39,944.22,0.18404129]
[1768430564376,0.63947783,946.38,944.22,0.18404129]
[1768430564576,0.63947783,946.37,944.22,0.18404129]
[1768430564774,0.63947783,946.36,944.22,0.18404129]
[1768430564978,0.63947783,946.35,944.22,0.18404129]
[1768430565278,0.63947783,946.34,944.22,0.18404129]
[1768430565578,0.63947783,946.33,944.22,0.18404129]
[1768430565778,0.63947783,946.32,944.22,0.18404129]
[1768430565978,0.63947783,946.31,944.22,0.18404129]
[1768430566274,0.63947783,946.3,944.22,0.18404129]
[1768430566479,0.63947783,946.29,944.22,0.18404129]
[1768430566680,0.63947783,946.28,944.22,0.18404129]
[1768430566879,0.63947783,946.27,944.22,0.18404129]
[1768430567079,0.63947783,946.26,944.22,0.18404129]
[1768430567280,0.63947783,946.25,944.22,0.18404129]
[1768430567480,0.63947783,946.24,944.22,0.18404129]
[1768430567677,0.63947783,946.23,944.22,0.18404129]
[1768430567877,0.63947783,946.22,944.22,0.18404129]
[1768430568180,0.63947783,946.21,944.22,0.18404129]
[1768430568380,0.63947783,946.2,944.22,0.18404129]
[1768430568578,0.63947783,946.19,944.22,0.18404129]
[1768430568782,0.63947783,946.18,944.22,0.18404129]
[1768430569077,0.63947783,946.17,944.22,0.18404129]
[1768430569282,0.63947783,946.16,944.22,0.18404129]
[1768430569480,0.63947783,946.15,944.22,0.18404129]
[1768430569683,0.63947783,946.14,944.22,0.18404129]
[1768430569982,0.63947783,946.13,944.22,0.18404129]
[1768430570179,0.63947783,946.12,944.22,0.18404129]
[1768430570379,0.63947783,946.11,944.22,0.18404129]
[1768430570684,0.63947783,946.1,944.22,0.18404129]
[1768430570883,0.63947783,946.09,944.22,0.18404129]
[1768430571085,0.63947783,946.08,944.22,0.18404129]
[1768430571285,6.72407945,946.4,944.3,2.61510079]
[1768430571581,0.6392658,946.39,944.3,2.61510079]
[1768430571782,0.6392658,946.38,944.29,2.61510079]
[1768430572085,0.6392658,946.37,944.29,2.61510079]
[1768430572286,0.6392658,946.36,944.27,2.61510079]
[1768430572485,0.6392658,946.35,944.27,2.61510079]
[1768430572682,0.6392658,946.34,944.27,2.61510079]
[1768430572887,0.6392658,946.33,944.27,2.61510079]
[1768430573188,0.6392658,946.32,944.27,2.61510079]
[1768430573387,0.6392658,946.31,944.26,2.61510079]
[1768430573584,0.6392658,946.3,944.26,2.61510079]
[1768430573786,0.6392658,946.29,944.26,2.61510079]
[1768430574084,0.6392658,946.28,944.26,2.61510079]
[1768430574288,0.6392658,946.27,944.26,2.61510079]
[1768430574488,0.6392658,946.26,944.25,2.61510079]
[1768430574687,0.6392658,946.25,944.25,2.61510079]
[1768430574889,0.6392658,946.24,944.25,2.61510079]
[1768430575089,0.6392658,946.23,944.25,2.61510079]
[1768430575285,0.6392658,946.22,944.25,2.61510079]
[1768430575589,0.6392658,946.21,944.26,2.61510079]
[1768430575791,0.6392658,946.2,944.26,2.61510079]
[1768430575990,0.6392658,946.19,944.26,2.61510079]
[1768430576192,0.6392658,946.18,944.26,2.61510079]
[1768430576392,0.6392658,946.17,944.25,2.61510079]
[1768430576592,0.6392658,946.16,944.25,2.61510079]
[1768430576793,0.6392658,946.15,944.25,2.61510079]
[1768430577094,6.72407945,946.4,944.25,2.61510079]
[1768430577295,0.63836471,946.39,944.25,2.61510079]
[1768430577595,0.63836471,946.38,944.24,2.61510079]
[1768430577791,0.63836471,946.37,944.24,2.61510079]
[1768430577994,0.63836471,946.36,944.24,2.61510079]
[1768430578192,0.63836471,946.35,944.24,2.61510079]
[1768430578395,0.63836471,946.34,944.24,2.61510079]
[1768430578692,0.63836471,946.33,944.24,2.61510079]
[1768430578895,0.63836471,946.32,944.24,2.61510079]
[1768430579092,0.63836471,946.31,944.24,2.61510079]
[1768430579295,0.63836471,946.3,944.24,2.61510079]
[1768430579591,0.63836471,946.29,944.23,2.61510079]
[1768430579895,0.63836471,946.28,944.23,2.61510079]
[1768430580095,0.63836471,946.27,944.23,2.61510079]
[1768430580393,0.63836471,946.26,944.23,2.61510079]
[1768430580595,0.63836471,946.25,944.23,2.61510079]
[1768430580795,0.63836471,946.24,944.23,2.61510079]
[1768430580996,0.63836471,946.23,944.23,2.61510079]
[1768430581195,0.63836471,946.22,944.23,2.61510079]
[1768430581396,0.63836471,946.21,944.23,2.61510079]
[1768430581690,0.63836471,946.2,944.23,2.61510079]
[1768430581892,0.63836471,946.19,944.23,2.61510079]
[1768430582095,0.63836471,946.18,944.23,2.61510079]
[1768430582294,6.72407945,946.4,944.22,2.79914208]
[1768430582497,0.63789135,946.39,944.22,2.79914208]
[1768430582694,0.63789135,946.38,944.22,2.79914208]
[1768430582993,0.63789135,946.37,944.22,2.79914208]
[1768430583194,0.63789135,946.36,944.22,2.79914208]
[1768430583394,0.63789135,946.35,944.22,2.79914208]
[1768430583593,0.63789135,946.34,944.22,2.79914208]
[1768430583798,0.63789135,946.33,944.22,2.79914208]
[1768430583998,0.63789135,946.32,944.22,2.79914208]
[1768430584198,0.63789135,946.31,944.22,2.79914208]
[1768430584399,0.63789135,946.3,944.22,2.79914208]
[1768430584600,0.63789135,946.29,944.22,2.79914208]
[1768430584798,0.63789135,946.28,944.22,2.79914208]
[1768430584999,0.63789135,946.27,944.22,2.79914208]
[1768430585296,0.63789135,946.26,944.22,2.79914208]
[1768430585601,0.63789135,946.25,944.22,2.79914208]
[1768430585799,0.63789135,946.24,944.22,2.79914208]
[1768430586096,6.72407945,946.4,944.22,2.79914208]
[1768430586097,0.63789135,946.23,944.22,2.79914208]
[1768430586399,0.63789135,946.22,944.22,2.79914208]
[1768430586599,0.63789135,946.21,944.22,2.79914208]
[1768430586799,0.63789135,946.2,944.22,2.79914208]
[1768430587000,6.72407945,946.4,944.22,2.79914208]
[1768430587201,0.63616982,946.39,944.22,2.79914208]
[1768430587400,0.63616982,946.38,944.22,2.79914208]
[1768430587595,6.72407945,946.4,944.22,2.79914208]
[1768430587596,0.63616982,946.37,944.22,2.79914208]
[1768430587799,0.63616982,946.36,944.22,2.79914208]
[1768430587998,0.63616982,946.35,944.22,2.79914208]
[1768430588298,0.63616982,946.34,944.22,2.79914208]
[1768430588497,0.63616982,946.33,944.23,2.61510079]
[1768430588697,0.63616982,946.32,944.23,2.61510079]
[1768430588899,0.63616982,946.31,944.23,2.61510079]
[1768430589101,0.63616982,946.3,944.23,2.61510079]
[1768430589296,0.63616982,946.29,944.23,2.61510079]
[1768430589496,0.63616982,946.28,944.23,2.61510079]
[1768430589699,0.63616982,946.27,944.23,2.61510079]
[1768430589996,0.63616982,946.26,944.23,2.61510079]
[1768430590300,0.63616982,946.25,944.23,2.61510079]
[1768430590500,0.63616982,946.24,944.23,2.61510079]
[1768430590797,0.63616982,946.23,944.23,2.61510079]
[1768430591099,6.72407945,946.4,944.23,2.61510079]
[1768430591100,0.63616982,946.22,944.23,2.61510079]
[1768430591294,0.63616982,946.21,944.23,2.61510079]
[1768430591499,0.63616982,946.2,944.24,2.61510079]
[1768430591797,0.63616982,946.19,944.24,2.61510079]
[1768430591998,0.63616982,946.18,944.24,2.61510079]
[1768430592195,0.63616982,946.17,944.24,2.61510079]
[1768430592400,6.72407945,946.4,944.24,2.61510079]
[1768430592601,0.63660956,946.39,944.25,2.61510079]
[1768430592797,0.63660956,946.38,944.25,2.61510079]
[1768430592997,0.63660956,946.37,944.25,2.61510079]
[1768430593298,0.63660956,946.36,944.22,0.18404129]
[1768430593604,0.63660956,946.35,944.22,0.18404129]
[1768430593897,0.63660956,946.34,944.22,0.18404129]
[1768430594097,0.63660956,946.33,944.22,0.18404129]
[1768430594303,0.63660956,946.32,944.22,0.18404129]
[1768430594501,0.63660956,946.31,944.22,0.18404129]
[1768430594799,0.63660956,946.3,944.22,0.18404129]
[1768430595102,0.63660956,946.29,944.22,0.18404129]
[1768430595303,0.63660956,946.28,944.22,0.18404129]
[1768430595499,0.63660956,946.27,944.22,0.18404129]
[1768430595697,0.63660956,946.26,944.22,0.18404129]
[1768430595996,0.63660956,946.25,944.22,0.18404129]
[1768430596202,0.63660956,946.24,944.22,0.18404129]
[1768430596398,0.63660956,946.23,944.22,0.18404129]
[1768430596600,0.63660956,946.22,944.22,0.18404129]
[1768430596801,0.63660956,946.21,944.22,0.18404129]
[1768430597001,0.63660956,946.2,944.22,0.18404129]
[1768430597298,0.63660956,946.19,944.22,0.18404129]
[1768430597599,0.63660956,946.18,944.22,0.18404129]
[1768430597803,0.63660956,946.17,944.22,0.18404129]
[1768430598003,0.63660956,946.16,944.22,0.18404129]
[1768430598200,0.63660956,946.15,944.22,0.18404129]
[1768430598402,0.63660956,946.14,944.22,0.18404129]
[1768430598601,0.63660956,946.13,944.22,0.18404129]
[1768430598802,0.63660956,946.12,944.22,0.18404129]
[1768430606504,0.63660956,946.12,944.22,2.79914208]
[1768430607206,0.63660956,946.11,944.22,0.18404129]
[1768430607407,0.63660956,946.1,944.22,0.18404129]
[1768430607603,0.63660956,946.09,944.22,0.18404129]
[1768430607802,0.63660956,946.08,944.22,0.18404129]
[1768430608006,0.63660956,946.07,944.22,0.18404129]
[1768430608207,0.63660956,946.06,944.22,0.18404129]
[1768430608408,0.63660956,946.05,944.22,0.18404129]
[1768430608608,0.63660956,946.04,944.22,0.18404129]
[1768430608808,0.63660956,946.03,944.22,0.18404129]
[1768430609006,0.63660956,946.02,944.22,0.18404129]
[1768430609307,0.63660956,946.01,944.22,0.18404129]
[1768430609509,0.63660956,946.0,944.22,0.18404129]
[1768430609808,0.63660956,945.99,944.22,0.18404129]
[1768430610004,0.63660956,945.98,944.22,0.18404129]
[1768430610208,1.937,946.13,944.22,0.18404129]
[1768430610209,0.63660956,945.97,944.22,0.18404129]
[1768430610408,1.937,946.13,944.22,0.18404129]
[1768430610409,0.63660956,945.96,944.22,0.18404129]
[1768430610609,0.63660956,945.95,944.22,0.18404129]
[1768430610810,0.63660956,945.94,944.22,0.18404129]
[1768430611011,0.63660956,945.93,944.22,0.18404129]
[1768430611210,0.63660956,945.92,944.22,0.18404129]
[1768430611505,0.63660956,945.91,944.22,0.18404129]
[1768430611711,0.63660956,945.9,944.22,0.18404129]
[1768430611910,0.63660956,945.89,944.22,0.18404129]
[1768430612111,0.63660956,945.88,944.22,0.18404129]
[1768430612410,0.63660956,945.87,944.22,0.18404129]
[1768430612605,0.63660956,945.86,944.22,0.18404129]
[1768430612810,0.63660956,945.85,944.22,0.18404129]
[1768430613011,0.63660956,945.84,944.22,0.18404129]
[1768430613208,1.937,946.13,944.22,0.18404129]
[1768430613512,0.63832441,946.12,944.22,0.18404129]
[1768430613811,0.63832441,946.11,944.22,0.18404129]
[1768430614012,0.63832441,946.1,944.22,0.18404129]
[1768430614308,0.63832441,946.09,944.22,0.18404129]
[1768430614611,1.937,946.13,944.22,0.18404129]
[1768430614612,0.63832441,946.08,944.22,0.18404129]
[1768430614812,0.63832441,946.07,944.22,0.18404129]
[1768430615108,0.63832441,946.06,944.22,0.18404129]
[1768430615311,0.63832441,946.05,944.22,0.18404129]
[1768430615514,0.63832441,946.04,944.22,0.18404129]
[1768430615711,0.63832441,946.03,944.22,0.18404129]
[1768430615911,0.63832441,946.02,944.22,0.18404129]
[1768430616109,0.63832441,946.01,944.22,0.18404129]
[1768430616408,0.63832441,946.0,944.22,0.18404129]
[1768430616714,0.63832441,945.99,944.22,0.18404129]
[1768430616912,0.63832441,945.98,944.22,0.18404129]
[1768430617111,0.63832441,945.97,944.22,0.18404129]
[1768430617316,0.63832441,945.96,944.22,0.18404129]
[1768430617612,0.63832441,945.95,944.22,0.18404129]
[1768430617816,0.63832441,945.94,944.22,0.18404129]
[1768430618012,0.63832441,945.93,944.22,0.18404129]
[1768430618312,0.63832441,945.92,944.22,0.18404129]
[1768430618516,0.63832441,945.91,944.22,0.18404129]
[1768430618716,0.63832441,945.9,944.22,0.18404129]
[1768430618916,0.63832441,945.89,944.22,0.18404129]
[1768430619116,0.63832441,945.88,944.22,0.18404129]
[1768430619315,0.63832441,945.87,944.22,0.18404129]
[1768430619619,0.63832441,945.86,944.22,0.18404129]
[1768430619912,0.63832441,945.85,944.22,0.18404129]
[1768430620117,0.63832441,945.84,944.22,0.18404129]
[1768430620317,1.937,946.13,944.22,0.18404129]
[1768430620518,0.63999935,946.12,944.22,0.18404129]
[1768430620813,0.63999935,946.11,944.22,0.18404129]
[1768430621015,0.63999935,946.1,944.22,0.18404129]
[1768430621213,0.63999935,946.09,944.22,0.18404129]
[1768430621512,0.63999935,946.08,944.22,0.18404129]
[1768430621711,0.63999935,946.07,944.22,0.18404129]
[1768430621912,0.63999935,946.06,944.22,0.18404129]
[1768430622115,0.63999935,946.05,944.22,0.18404129]
[1768430622315,0.63999935,946.04,944.22,0.18404129]
[1768430622515,0.63999935,946.03,944.22,0.18404129]
[1768430622715,0.63999935,946.02,944.22,0.18404129]
[1768430623015,0.63999935,946.01,944.22,0.18404129]
[1768430623215,0.63999935,946.0,944.22,0.18404129]
[1768430623418,0.63999935,945.99,944.22,0.18404129]
[1768430623619,0.63999935,945.98,944.22,0.18404129]
[1768430623815,0.63999935,945.97,944.22,0.18404129]
[1768430624014,0.63999935,945.96,944.22,0.18404129]
[1768430624215,0.63999935,945.95,944.22,0.18404129]
[1768430624416,0.63999935,945.94,944.22,0.18404129]
[1768430624615,0.63999935,945.93,944.22,0.18404129]
[1768430624815,0.63999935,945.92,944.22,0.18404129]
[1768430625019,0.63999935,945.91,944.22,0.18404129]
[1768430625215,0.63999935,945.9,944.22,0.18404129]
[1768430625417,0.63999935,945.89,944.22,0.18404129]
[1768430625616,0.63999935,945.88,944.22,0.18404129]
[1768430625818,0.63999935,945.87,944.22,0.18404129]
[1768430626017,0.63999935,945.86,944.22,0.18404129]
[1768430626217,1.937,946.13,944.22,0.18404129]
[1768430626218,0.63999935,945.85,944.22,0.18404129]
[1768430626417,0.63999935,945.84,944.22,0.18404129]
[1768430626618,0.63999935,945.83,944.22,0.18404129]
[1768430626818,0.63999935,945.82,944.22,0.18404129]
[1768430627021,0.63999935,945.81,944.22,0.18404129]
[1768430627220,0.63999935,945.8,944.22,0.18404129]
[1768430627418,0.63999935,945.79,944.22,0.18404129]
[1768430627718,0.63999935,945.78,944.22,0.18404129]
[1768430627921,1.937,946.13,944.22,0.18404129]
[1768430627922,0.63999935,945.77,944.22,0.18404129]
[1768430628119,1.937,946.13,944.22,0.18404129]
[1768430628120,0.63999935,945.76,944.22,0.18404129]
[1768430628420,0.63999935,945.75,944.22,0.18404129]
[1768430628620,0.63999935,945.74,944.22,0.18404129]
[1768430628824,0.63999935,945.73,944.22,0.18404129]
[1768430629024,0.63999935,945.72,944.22,0.18404129]
[1768430629224,0.63999935,945.71,944.22,0.18404129]
[1768430629421,0.63999935,945.7,944.22,0.18404129]
[1768430629721,1.937,946.13,944.22,0.18404129]
[1768430630025,0.63972409,946.12,944.22,0.18404129]
[1768430630226,0.63972409,946.11,944.22,0.18404129]
[1768430630427,0.63972409,946.1,944.22,0.18404129]
[1768430630629,0.63972409,946.09,944.22,0.18404129]
[1768430630828,0.63972409,946.08,944.22,0.18404129]
[1768430631128,0.63972409,946.07,944.22,0.18404129]
[1768430631329,0.63972409,946.06,944.22,0.18404129]
[1768430631524,0.63972409,946.05,944.22,0.18404129]
[1768430631724,0.63972409,946.04,944.22,0.18404129]
[1768430631926,0.63972409,946.03,944.22,0.18404129]
[1768430632224,0.63972409,946.02,944.22,0.18404129]
[1768430632428,0.63972409,946.01,944.22,0.18404129]
[1768430632629,0.63972409,946.0,944.22,0.18404129]
[1768430632827,0.63972409,945.99,944.22,0.18404129]
[1768430633028,0.63972409,945.98,944.22,0.18404129]
[1768430633228,0.63972409,945.97,944.22,0.18404129]
[1768430633427,0.63972409,945.96,944.22,0.18404129]
[1768430633631,0.63972409,945.95,944.22,0.18404129]
[1768430633832,0.63972409,945.94,944.22,0.18404129]
[1768430634032,0.63972409,945.93,944.22,0.18404129]
[1768430634232,0.63972409,945.92,944.22,0.18404129]
[1768430634433,0.63972409,945.91,944.22,0.18404129]
[1768430634633,0.63972409,945.9,944.22,0.18404129]
[1768430634834,0.63972409,945.89,944.22,0.18404129]
[1768430635129,0.63972409,945.88,944.22,0.18404129]
[1768430635329,0.63972409,945.87,944.22,0.18404129]
[1768430635533,0.63972409,945.86,944.22,0.18404129]
[1768430635728,0.63972409,945.85,944.22,0.18404129]
[1768430635928,0.63972409,945.84,944.22,0.18404129]
[1768430636128,0.63972409,945.83,944.22,0.18404129]
[1768430636329,0.63972409,945.82,944.22,0.18404129]
[1768430636532,0.63972409,945.81,944.22,0.18404129]
[1768430636833,0.63972409,945.8,944.22,0.18404129]
[1768430637129,0.63972409,945.79,944.22,0.18404129]
[1768430637332,0.63972409,945.78,944.22,0.18404129]
[1768430637533,0.63972409,945.77,944.22,0.18404129]
[1768430637733,0.63972409,945.76,944.22,0.18404129]
[1768430638030,0.63972409,945.75,944.22,0.18404129]
[1768430638233,0.63972409,945.74,944.22,0.18404129]
[1768430638428,0.63972409,945.73,944.22,0.18404129]
[1768430638730,0.63972409,945.72,944.22,0.18404129]
[1768430638929,0.63972409,945.71,944.22,0.18404129]
[1768430639130,0.63972409,945.7,944.22,0.18404129]
[1768430639331,0.63972409,945.69,944.22,0.18404129]
[1768430639531,1.937,946.13,944.22,0.18404129]
[1768430639731,0.63979332,946.12,944.22,0.18404129]
[1768430639935,0.63979332,946.11,944.22,0.18404129]
[1768430640232,0.63979332,946.1,944.22,0.18404129]
[1768430640436,0.63979332,946.09,944.22,0.18404129]
[1768430640632,0.63979332,946.08,944.22,0.18404129]
[1768430640832,0.63979332,946.07,944.22,0.18404129]
[1768430641132,0.63979332,946.06,944.22,0.18404129]
[1768430641336,0.63979332,946.05,944.22,0.18404129]
[1768430641636,0.63979332,946.04,944.22,0.18404129]
[1768430641832,0.63979332,946.03,944.22,0.18404129]
[1768430642033,0.63979332,946.02,944.22,0.18404129]
[1768430642236,0.63979332,946.01,944.22,0.18404129]
[1768430642531,0.63979332,946.0,944.22,0.18404129]
[1768430642736,0.63979332,945.99,944.22,0.18404129]
[1768430642934,0.63979332,945.98,944.22,0.18404129]
[1768430643139,0.63979332,945.97,944.22,0.18404129]
[1768430643333,0.63979332,945.96,944.22,0.18404129]
[1768430643534,0.63979332,945.95,944.22,0.18404129]
[1768430643738,0.63979332,945.94,944.22,0.18404129]
[1768430643939,0.63979332,945.93,944.22,0.18404129]
[1768430644139,0.63979332,945.92,944.22,0.18404129]
[1768430644339,1.937,946.13,944.22,0.18404129]
[1768430644635,0.64077625,946.12,944.22,0.18404129]
[1768430644836,0.64077625,946.11,944.22,0.18404129]
[1768430645036,0.64077625,946.1,944.22,0.18404129]
[1768430645235,0.6408186,946.09,944.22,0.18404129]
[1768430645540,0.6408186,946.08,944.22,0.18404129]
[1768430645735,0.6408186,946.07,944.22,0.18404129]
[1768430645938,0.6408186,946.06,944.22,0.18404129]
[1768430646140,0.6408186,946.05,944.22,0.18404129]
[1768430646336,0.6408186,946.04,944.22,0.18404129]
[1768430646636,0.6408186,946.03,944.22,0.18404129]
[1768430646836,0.6408186,946.02,944.22,0.18404129]
[1768430647037,0.6408186,946.01,944.22,0.18404129]
[1768430647236,0.6408186,946.0,944.22,0.18404129]
[1768430647441,0.6408186,945.99,944.22,0.18404129]
[1768430647642,0.6408186,945.98,944.22,0.18404129]
[1768430647837,0.6408186,945.97,944.22,0.18404129]
[1768430648038,0.6408186,945.96,944.22,0.18404129]
[1768430648240,0.6408186,945.95,944.22,0.18404129]
[1768430648543,0.6408186,945.94,944.22,0.18404129]
[1768430648845,1.937,946.13,944.22,0.18404129]
[1768430649137,0.64088133,946.12,944.22,0.18404129]
[1768430649340,0.64088133,946.11,944.22,0.18404129]
[1768430649540,0.64088133,946.1,944.22,0.18404129]
[1768430649741,0.64088133,946.09,944.22,0.18404129]
[1768430649940,0.64088133,946.08,944.22,0.18404129]
[1768430650238,0.64088133,946.07,944.22,0.18404129]
[1768430650440,0.64088133,946.06,944.22,0.18404129]
[1768430650642,0.64088133,946.05,944.22,0.18404129]
[1768430650841,0.64088133,946.04,944.22,0.18404129]
[1768430651044,0.64088133,946.03,944.22,0.18404129]
[1768430651244,0.64088133,946.02,944.22,0.18404129]
[1768430651439,0.64088133,946.01,944.22,0.18404129]
[1768430651645,0.64088133,946.0,944.22,0.18404129]
[1768430651844,0.64088133,945.99,944.22,0.18404129]
[1768430652042,0.64088133,945.98,944.22,0.18404129]
[1768430652341,0.64088133,945.97,944.22,0.18404129]
[1768430652540,1.937,946.13,944.22,0.18404129]
[1768430652541,0.64088133,945.96,944.22,0.18404129]
[1768430652745,0.64088133,945.95,944.22,0.18404129]
[1768430653045,0.64088133,945.94,944.22,0.18404129]
[1768430653241,1.937,946.13,944.22,0.18404129]
[1768430653545,0.64082687,946.12,944.22,0.18404129]
[1768430653741,0.64082687,946.11,944.22,0.18404129]
[1768430653941,0.64082687,946.1,944.22,0.18404129]
[1768430654142,0.64082687,946.09,944.22,0.18404129]
[1768430654339,0.64082687,946.08,944.22,0.18404129]
[1768430654641,0.64082687,946.07,944.22,0.18404129]
[1768430654845,0.64082687,946.06,944.22,0.18404129]
[1768430655040,0.64082687,946.05,944.22,0.18404129]
[1768430655244,0.64082687,946.04,944.22,0.18404129]
[1768430655446,0.64082687,946.03,944.22,0.18404129]
[1768430655645,0.64082687,946.02,944.22,0.18404129]
[1768430655844,0.64082687,946.01,944.22,0.18404129]
[1768430656042,0.64082687,946.0,944.22,0.18404129]
[1768430656242,0.64082687,945.99,944.22,0.18404129]
[1768430656444,0.64082687,945.98,944.22,0.18404129]
[1768430656649,0.64082687,945.97,944.22,0.18404129]
[1768430656844,0.64082687,945.96,944.22,0.18404129]
[1768430657048,0.64082687,945.95,944.22,0.18404129]
[1768430657348,6.72407945,946.4,944.22,0.18404129]
[1768430657546,0.64067958,946.39,944.22,0.18404129]
[1768430657748,0.64067958,946.38,944.19,2.61510079]
[1768430658051,0.64067958,946.37,944.43,0.183962]
[1768430658249,0.64067958,946.36,944.43,0.183962]
[1768430658450,0.64067958,946.35,944.43,0.183962]
[1768430658747,0.64067958,946.34,944.43,0.183962]
[1768430658946,0.64067958,946.33,944.43,0.183962]
[1768430659151,0.64067958,946.32,944.43,0.183962]
[1768430659347,0.64067958,946.31,944.43,0.183962]
[1768430659553,0.64067958,946.3,944.43,0.183962]
[1768430659748,0.64067958,946.29,944.43,0.183962]
[1768430660046,0.64067958,946.28,944.43,0.183962]
[1768430660253,0.64067958,946.27,944.43,0.183962]
[1768430660451,0.64067958,946.26,944.43,0.183962]
[1768430660653,0.64067958,946.25,944.43,0.183962]
[1768430660851,0.64067958,946.24,944.43,0.183962]
[1768430661151,0.64067958,946.23,944.43,0.183962]
[1768430661352,0.64067958,946.22,944.43,0.183962]
[1768430661551,0.64067958,946.21,944.43,0.183962]
[1768430661751,0.64067958,946.2,944.43,0.183962]
[1768430661953,0.64067958,946.19,944.43,0.183962]
[1768430662154,0.64067958,946.18,944.43,0.183962]
[1768430662350,0.64067958,946.17,944.43,0.183962]
[1768430662655,0.64067958,946.16,944.43,0.183962]
[1768430662855,0.64067958,946.15,944.43,0.183962]
[1768430663055,0.64067958,946.14,944.43,0.183962]
[1768430663355,0.64067958,946.13,944.43,0.183962]
[1768430663556,0.64067958,946.12,944.43,0.183962]
[1768430663753,0.64067958,946.11,944.43,0.183962]
[1768430663956,0.64067958,946.1,944.43,0.183962]
[1768430664157,1.554,946.3,944.43,0.183962]
[1768430664354,0.64019608,946.29,944.43,0.183962]
[1768430664655,0.64019608,946.28,944.43,0.183962]
[1768430664854,0.64019608,946.27,944.43,0.183962]
[1768430665057,1.554,946.3,944.43,0.183962]
[1768430665058,0.64019608,946.26,944.43,0.183962]
[1768430665256,0.64019608,946.25,944.43,0.183962]
[1768430665455,0.64019608,946.24,944.43,0.183962]
[1768430665658,0.64019608,946.23,944.43,0.183962]
[1768430665857,0.64019608,946.22,944.43,0.183962]
[1768430666059,0.64019608,946.21,944.43,0.183962]
[1768430666259,0.64019608,946.2,944.43,0.183962]
[1768430666456,0.64019608,946.19,944.43,0.183962]
[1768430666759,0.64019608,946.18,944.43,0.183962]
[1768430667058,0.64019608,946.17,944.43,0.183962]
[1768430667260,0.64019608,946.16,944.43,0.183962]
[1768430667459,0.64019608,946.15,944.43,0.183962]
[1768430667657,0.64019608,946.14,944.43,0.183962]
[1768430667857,0.64019608,946.13,944.43,0.183962]
[1768430668055,0.64019608,946.12,944.43,0.183962]
[1768430668257,0.64019608,946.11,944.43,0.183962]
[1768430668461,1.554,946.3,944.43,0.183962]
[1768430668659,0.64003056,946.29,944.43,0.183962]
[1768430668858,0.64003056,946.28,944.43,0.183962]
[1768430669158,1.554,946.3,944.43,0.183962]
[1768430669159,0.64003056,946.27,944.43,0.183962]
[1768430669359,0.64003056,946.26,944.43,0.183962]
[1768430669559,0.64003056,946.25,944.43,0.183962]
[1768430669760,0.64003056,946.24,944.43,0.183962]
[1768430669960,0.64003056,946.23,944.43,0.183962]
[1768430670159,0.64003056,946.22,944.43,0.183962]
[1768430670359,0.64003056,946.21,944.43,0.183962]
[1768430670564,0.64003056,946.2,944.43,0.183962]
[1768430670763,0.64003056,946.19,944.43,0.183962]
[1768430670964,0.64003056,946.18,944.43,0.183962]
[1768430671160,0.64003056,946.17,944.43,0.183962]
[1768430671459,0.64003056,946.16,944.43,0.183962]
[1768430671762,0.64003056,946.15,944.43,0.183962]
[1768430671960,0.64003056,946.14,944.43,0.183962]
[1768430672165,0.64003056,946.13,944.43,0.183962]
[1768430672362,0.64003056,946.12,944.43,0.183962]
[1768430672664,0.64003056,946.11,944.43,0.183962]
[1768430672962,1.554,946.3,944.43,0.183962]
[1768430673162,0.63991049,946.29,944.43,0.183962]
[1768430673361,0.63991049,946.28,944.43,0.183962]
[1768430673561,0.63991049,946.27,944.43,0.183962]
[1768430673762,0.63991049,946.26,944.43,0.183962]
[1768430674062,0.63991049,946.25,944.43,0.183962]